Cogmind - Beta 13 @@@ ROGUE MODE // 2024.05.03 @ 14:27:15 Player: void Result: Self-destructed Performance ------------- Evolutions (1) 500 Regions Visited (3) 600 Robots Destroyed (16) 80 Value Destroyed (242) 242 Prototype IDs (1) 20 Alien Tech Used (0) 0 Bonus (0) 0 TOTAL SCORE: 1442 Bonus ------- None Cogmind --------- Core Integrity 300/400 Matter 9/300 Energy 250/250 System Corruption 0% Temperature Warm (120) Movement Rolling (100) Location -9/Materials Parts ------- > --- POWER (1) -------- Ion Engine > --- PROPULSION (3) --- Compact Wheel Compact Wheel > --- UTILITY (3) ------ Small Storage Unit Advanced Visual Processing Unit Seismic Detector > --- WEAPON (2) ------- Flak Cannon Flak Cannon > --- INVENTORY (8) ---- Medium Storage Unit Improved Terrain Scanner Improved EM Shotgun Assault Rifle Grenade Launcher Mining Laser Peak State ------------ > --- POWER ------------ Ion Engine > --- PROPULSION ------- Compact Wheel Compact Wheel Compact Wheel > --- UTILITY ---------- Small Storage Unit Advanced Visual Processing Unit Seismic Detector > --- WEAPON ----------- Flak Cannon Flak Cannon > --- INVENTORY -------- Medium Storage Unit Improved Terrain Scanner Improved EM Shotgun Assault Rifle Grenade Launcher Mining Laser [Rating: 16] Favorites ----------- Power Ion Engine Engine Ion Engine Propulsion Wheel Treads Light Treads Wheel Wheel Utility Small Storage Unit Device Seismic Detector Storage Small Storage Unit Processor Advanced Visual Processing Unit Weapon Assault Rifle Energy Gun Improved EM Shotgun Ballistic Gun Assault Rifle Ballistic Cannon Flak Cannon Launcher Grenade Launcher Slashing Weapon Makeshift Sword Build | -11 -10 -10 -9 ------- Run | Yrd Mat Min Mat Slots Evolved 2 | . . . 2 Power . | . . . . Propulsion 1 | . . . 1 Utility 1 | . . . 1 Weapon . | . . . . Parts Attached 25 | 7 3 4 11 Power 2 | 1 1 . . Engine 2 | 1 1 . . Core . | . . . . Reactor . | . . . . Propulsion 7 | 2 . . 5 Treads 2 | . . . 2 Leg . | . . . . Wheel 5 | 2 . . 3 Hover . | . . . . Flight . | . . . . Utility 3 | 2 . . 1 Device 1 | 1 . . . Storage 1 | 1 . . . Processor 1 | . . . 1 Hackware . | . . . . Protection . | . . . . Artifact . | . . . . Weapon 13 | 2 2 4 5 Energy Gun 1 | . . . 1 Energy Cannon . | . . . . Ballistic Gun 6 | 2 2 2 . Ballistic Cannon 4 | . . . 4 Launcher 1 | . . 1 . Special Weapon . | . . . . Impact Weapon . | . . . . Slashing Weapon 1 | . . 1 . Piercing Weapon . | . . . . Special Melee Weapon . | . . . . Unidentified Prototypes 1 | . . . 1 Parts Lost 4 | . 1 2 1 Power . | . . . . Propulsion 3 | . 1 1 1 Utility . | . . . . Weapon 1 | . . 1 . Highest Loss Streak 2 | . 1 2 1 To Critical Strikes . | . . . . Average Slot Usage (%) 77 | . 94 80 63 Engine 12 | . 14 14 11 Wheel 12 | . 23 11 9 Device 12 | . 14 14 11 Storage 12 | . 14 14 11 Processor 2 | . . . 6 Ballistic Gun 19 | . 28 25 6 Ballistic Cannon 2 | . . . 6 Naked Turns . | . . . . Heaviest Build 23 | 13 15 15 23 Greatest Support 48 | 20 20 10 48 Greatest Overweight (x) 4 | 1 1 4 4 Average Overweight (x) 1 | . . 1 2 Largest Inventory Capacity 8 | 8 8 8 8 Average Capacity 7 | 6 8 8 8 Most Carried 8 | 3 8 8 8 Average Carried 7 | 2 5 7 7 Final Capacity 8 | 8 8 8 8 Final Carried 8 | 3 8 8 6 Class Distribution -------------------- 100% | Mutant Dominant Class ---------------- Mutant | -10/Materials Mutant | -10/Mines Mutant | -9/Materials Resources | -11 -10 -10 -9 ----------- Run | Yrd Mat Min Mat Matter Collected 407 | 240 41 60 66 Remotely . | . . . . Salvage Created 291 | 41 84 60 106 Parts 32 | 7 4 11 10 Haulers Intercepted 1 | . . . 1 Recyclers Shooed 1 | . 1 . . Parts Field Recycled . | . . . . Retrieved Matter . | . . . . Parts Self-Destructed . | . . . . Prevented . | . . . . Kills | -11 -10 -10 -9 ------- Run | Yrd Mat Min Mat Combat Hostiles Destroyed 13 | . 2 6 5 Guns 6 | . 2 4 . Cannons 5 | . . . 5 AOE 2 | . . 2 . Classes Destroyed 5 | 1 1 1 2 Tunneler 2 | 2 . . . Hauler 1 | . . . 1 Swarmer 10 | . . 6 4 Grunt 2 | . 2 . . Sentry 1 | . . . 1 Best Kill Streak 4 | 1 1 3 4 Combat Bots Only 4 | . 1 3 4 Max Kills in Single Turn 2 | 1 1 2 1 Gunslinging . | . . . . Exploded 1 | . . 1 . Melee . | . . . . Uniques/NPCs Destroyed . | . . . . Combat | -11 -10 -10 -9 -------- Run | Yrd Mat Min Mat Hostile Shots Fired 77 | . 23 25 29 Missed 14 | . 4 3 7 Damage Taken 732 | . 243 226 263 Core 204 | . 37 67 100 Absorbed by Shields . | . . . . Core Remaining (%) 79 | 100 . 58 . Volleys Fired 40 | 3 14 9 14 Largest 2 | 2 2 2 2 Hottest 88 | 40 40 50 88 Shots Fired 72 | 6 28 15 23 Gun 52 | 6 28 13 5 Cannon 18 | . . . 18 Launcher 2 | . . 2 . Special . | . . . . Kinetic 70 | 6 28 13 23 Thermal . | . . . . Explosive 2 | . . 2 . Electromagnetic . | . . . . Robot Hit Streak 12 | 3 9 12 5 Robot Miss Streak 8 | 1 3 4 8 Penetration Max . | . . . . Secondary Targets 2 | . . 2 . Max Gunslinging Chain 1 | . . 1 . Shots Hit Robots 47 | 4 21 10 12 Core Hits 28 | 2 6 6 14 Critical Kills 1 | . . 1 . Critical Parts Destroyed 1 | . . 1 . Critical Strikes 2 | . . 2 . Destroy 2 | . . 2 . Melee Attacks . | . . . . Impact . | . . . . Slashing . | . . . . Piercing . | . . . . Sneak Attacks . | . . . . Combat Hostiles . | . . . . Follow-up Attacks . | . . . . Damage Inflicted 756 | 35 261 230 230 Guns 422 | 35 261 111 15 Cannons 215 | . . . 215 Explosions 119 | . . 119 . Melee . | . . . . Ramming . | . . . . Kinetic 637 | 35 261 111 230 Thermal . | . . . . Explosive 119 | . . 119 . Electromagnetic . | . . . . Impact . | . . . . Slashing . | . . . . Piercing . | . . . . Highest Corruption . | . . . . Average Corruption . | . . . . Corruption Purged . | . . . . Corruption Blocked . | . . . . Overload Shots . | . . . . Overflow Damage . | . . . . Projectiles . | . . . . Explosions . | . . . . Melee . | . . . . Knockbacks 7 | . . . 7 Impact . | . . . . Kinetic 6 | . . . 6 Secondary 1 | . . . 1 Self-Inflicted Damage . | . . . . Shots . | . . . . Rammed . | . . . . Targets Rammed . | . . . . Kicked . | . . . . Crushed . | . . . . Highest Temperature 111 | . 33 . 111 Average Temperature 36 | . 14 . 46 Received Heat Transfer 312 | . 171 57 84 Siege Activations . | . . . . Robots Corrupted . | . . . . Combat Hostiles . | . . . . Parts Fried . | . . . . Impact Corruptions . | . . . . Robots Melted . | . . . . Combat Hostiles . | . . . . Parts Melted . | . . . . Heat Transferred . | . . . . Parts Sabotaged . | . . . . Parts Stolen . | . . . . Parts Stripped . | . . . . Power Chain Reactions . | . . . . Alert | -11 -10 -10 -9 ------- Run | Yrd Mat Min Mat Peak Influence 206 | 10 69 107 206 Initial 26 | . 6 26 19 Average 63 | 3 32 88 54 Maximum Alert Level 1 | . . . 1 Low Security (%) 99 | 100 100 100 99 Level 1 . | . . . . Level 2 . | . . . . Level 3 . | . . . . Level 4 . | . . . . Level 5 . | . . . . High Security . | . . . . Max Security . | . . . . Squads Dispatched . | . . . . Investigation . | . . . . Extermination . | . . . . Reinforcement . | . . . . Assault . | . . . . Garrison . | . . . . Intercept . | . . . . Searches Triggered . | . . . . Construction Impeded . | . . . . Haulers Reinforced . | . . . . Active Scanning Responses . | . . . . Cargo Convoy Interrupts . | . . . . Stealth | -11 -10 -10 -9 --------- Run | Yrd Mat Min Mat Distress Signals . | . . . . Communications Jammed . | . . . . Distress Signals . | . . . . Times Spotted 20 | . 4 8 8 Peak Tracking Total 4 | . 2 3 4 Tactical Retreats 1 | . . . 1 Traps | -11 -10 -10 -9 ------- Run | Yrd Mat Min Mat Traps Triggered . | . . . . Indirectly . | . . . . Trap Hack Attempts . | . . . . Triggered . | . . . . Disarmed . | . . . . Reprogrammed . | . . . . Reused . | . . . . Traps Extracted . | . . . . Installed . | . . . . Triggered . | . . . . Most Traps Carried 2 | . . 2 2 Machines | -11 -10 -10 -9 ---------- Run | Yrd Mat Min Mat Machines Disabled . | . . . . Max in Single Turn . | . . . . Machines Repaired . | . . . . Machines Dismantled . | . . . . Machines Sabotaged . | . . . . Overloaded Fab Kills . | . . . . Hacking | -11 -10 -10 -9 --------- Run | Yrd Mat Min Mat Machines Accessed 6 | . 5 1 . Terminals 6 | . 5 1 . Fabricators . | . . . . Repair Stations . | . . . . Recycling Units . | . . . . Scanalyzers . | . . . . Garrison Access . | . . . . Total Hacks 16 | . 14 2 . Successful 2 | . 1 1 . Failed 14 | . 13 1 . Catastrophic 3 | . 3 . . Database Lockouts . | . . . . Manual 13 | . 12 1 . Terminals 16 | . 14 2 . Fabricators . | . . . . Repair Stations . | . . . . Recycling Units . | . . . . Scanalyzers . | . . . . Garrison Access . | . . . . Terminal Hacks 2 | . 1 1 . Level Access Points 1 | . . 1 . Branch Access Points 1 | . 1 . . Fabricator Hacks . | . . . . Repair Station Hacks . | . . . . Recycling Unit Hacks . | . . . . Scanalyzer . | . . . . Garrison Access Hacks . | . . . . Unauthorized Hacks . | . . . . Terminals . | . . . . Fabricators . | . . . . Repair Stations . | . . . . Recycling Units . | . . . . Scanalyzers . | . . . . Garrison Access . | . . . . Data Cores Recovered . | . . . . Used . | . . . . Hacking Detections 5 | . 4 1 . Full Trace Events 1 | . 1 . . Feedback Events . | . . . . Feedback Blocked . | . . . . Robot Schematics Acquired . | . . . . Robots Built . | . . . . Authchips . | . . . . Time . | . . . . Total Robot Build Rating . | . . . . Part Schematics Acquired . | . . . . Parts Built . | . . . . Authchips . | . . . . Time . | . . . . Total Part Build Rating . | . . . . Parts Repaired . | . . . . Time . | . . . . Parts Recycled . | . . . . Recycled Matter . | . . . . Retrieved Matter . | . . . . Retrieved Components . | . . . . Parts Scanalyzed . | . . . . Part Schematics Acquired . | . . . . Parts Damaged . | . . . . Bothacking | -11 -10 -10 -9 ------------ Run | Yrd Mat Min Mat Used RIF Installer . | . . . . Robots Hacked . | . . . . Non-combat . | . . . . Combat . | . . . . Robot Hacks Applied . | . . . . Relay Couplers Released . | . . . . Fabnet Peak Effective % . | . . . . Robots Rewired . | . . . . Allies Hacked . | . . . . Hacks Repelled . | . . . . Allies | -11 -10 -10 -9 -------- Run | Yrd Mat Min Mat Total Allies . | . . . . Largest Group . | . . . . Highest-Rated Group . | . . . . Highest-Rated Ally . | . . . . Total Orders . | . . . . Ally Attacks . | . . . . Total Damage . | . . . . Kills . | . . . . Allies Corrupted . | . . . . Allies Melted . | . . . . Intel | -11 -10 -10 -9 ------- Run | Yrd Mat Min Mat Robot Analysis Total . | . . . . Derelict Logs Recovered . | . . . . Drone Launches . | . . . . Drone Recoveries . | . . . . Exploration | -11 -10 -10 -9 ------------- Run | Yrd Mat Min Mat Turns Passed 1169 | 61 200 531 377 Spaces Moved 821 | 50 173 453 145 Core 130 | 2 . 34 94 Treads 2 | . . . 2 Legs . | . . . . Wheels 689 | 48 173 419 49 Hover . | . . . . Flight . | . . . . Fastest Speed 50 | 50 80 95 100 Average Speed 115 | 79 83 106 196 Slowest Speed 250 | 95 95 250 250 Overloaded Moves . | . . . . Propulsion Burnouts . | . . . . Robots Hopped . | . . . . Cave-ins Triggered . | . . . . Exploration Rate (%) 33 | 3 33 81 17 Regions Visited 3 Branch Regions 1 Pre-discovered Areas . | . . . . Known Exits Taken 2 | . 1 1 . Unknown Exits Taken 1 | 1 . . . Scrap Searched 1 | . . 1 . Spaces Dug . | . . . . Terrain Destroyed 20 | . . 20 . Melee . | . . . . Projectile . | . . . . AOE 20 | . . 20 . Terrain Rammed . | . . . . Walls Destroyed . | . . . . Machines Disabled . | . . . . Actions | -11 -10 -10 -9 --------- Run | Yrd Mat Min Mat Total 963 | 62 200 487 214 Wait 51 | . 2 16 33 Move 818 | 49 172 452 145 Hop . | . . . . Pick Up 15 | 3 7 3 2 Fast Attach 14 | 7 . . 7 Attach 4 | . . 1 3 Detach 3 | . . . 3 Swap 7 | . 3 3 1 Drop 11 | . 2 3 6 Fire 40 | 3 14 9 14 Melee . | . . . . Ram . | . . . . Kick . | . . . . Crush . | . . . . Escape Stasis . | . . . . Rewire . | . . . . Trap . | . . . . Miscellaneous . | . . . . Route ------- -11/Scrapyard -10/Materials (discovered 2 exits: *Min x2) -10/Mines (discovered 2 exits: *Mat x2) -9/Materials (discovered 1 exit: [*Min]) History --------- Turn | Location | Event 2 | -11/Scrapyard | Met Revision 17 11 | -11/Scrapyard | Discovered new exit (range 16) 62 | -11/Scrapyard | Entered Materials 151 | -10/Materials | Identified exit to Mines 262 | -10/Materials | Entered Mines 310 | -10/Mines | Build established: Mutant 320 | -10/Mines | A weapon hastily lodged in a ceiling crevice suddenly fell to the ground 404 | -10/Mines | Found a hidden stash of uninstalled traps 622 | -10/Mines | Discovered new exit (range 10) 674 | -10/Mines | Discovered new exit (range 7) 741 | -10/Mines | Identified exit to Materials 793 | -10/Mines | Entered Materials 793 | -9/Materials | Evolved 2 slots: Propulsion x1, Utility x1 990 | -9/Materials | Discovered new exit (range 20) 1170 | -9/Materials | Self-destructed Last Messages --------------- Acquired Com. Wheel. K-01 Serf collects debris. Acquired 31 matter. K-01 Serf collects debris. Acquired 35 matter. K-01 Serf collects debris. S-10 Pest knocked back. S-10 Pest destroyed. S-10 Pest knocked back. S-10 Pest destroyed. K-01 Serf collects debris. S-10 Pest knocked back. S-10 Pest destroyed. K-01 Serf collects debris. C-30 ARC bursts open, deploying its payload. G-47 Trooper unfolds itself. G-34 Mercenary unfolds itself. S-10 Pest destroyed. K-01 Serf collects debris. Com. Wheel destroyed. Map ----- +----------------------------------------------------+ | ?????????????????????????????????????????????????? | | ?????????????????????????????????????????????????? | | ?????????????????????????????????????????????????? | | ?????????????????????????????????????????????????? | | ?????????????????????????????????????????????????? | | ?????????????????????????????????????????????????? | | ?????????????????????????????????????????????????? | | ?????????????????????????????????????????????????? | | ?????????????????????????????????????????????????? | | ?????????????????????????????????????????????????? | | ?????????????????????????????????????????????????? | | ?????????????????????????????????????????????????? | | ?????????????????????????????????????????????????? | | ?????????????????????????????????????????????????? | | ?????????????????????????????????????????????????? | | ?????????????????????????????????##??????????????? | | ?????????????????????????#####?? ???????????????? | | ?????????????????????????# #? ????????????????? | | ?????????????????????????# # ?????????????????? | | ????????????????????????? # ??????????????????? | | ????????????????########## +???????????????????? | | ????????????????# # #???????????????????? | | ????????????????# """%* # * #???????????????????? | | ????????????????# """ / #k%r#???????????????????? | | ????????????????# """ #%gk#???????????????????? | | ????????????????# @=g #???????????????????? | | ????????????????# """ # ##########??????????? | | ????????????????# """ # # #??????????? | | ????????????????# """ # # """ #??????????? | | ????????????????# # # """ #??????????? | | ????????????????########## # """ #??????????? | | ?????????????????????????# # #??????????? | | ?????????????????????????# # """ #??????????? | | ?????????????????????????# # """ #??????????? | | ?????????????????????????# + """ #??????????? | | ?????????????????????????# # #??????????? | | ?????????????????????????# ##########??????????? | | ?????????????????????????# #### #??????????? | | ?????????????????????????# #??????????? | | ?????????????????????????# < #??????????? | | ?????????????????????????# ] #??????????? | | ??????????????????????#######/### #??????????? | | ??????????????????????# ## ##??????????? | | ??????????????????????# | ## #???????????? | | ??????????????????????# ## [ #???????????? | | ??????????????????????# ## [#???????????? | | ??????????????????????############ #???????????? | | ?????????????????????????????##! #???????????? | | ?????????????????????????????#! ########????? | | ?????????????????????????????#!& #????? | +----------------------------------------------------+ Best States ------------- Heat Dissipation 28 Energy Generation 10 Energy Capacity 250 Matter Stores 264 Matter Capacity 300 Sight Range 20 Terrain Scan Density 10 Evasion (%) 44 Recoil Reduction 1 Item Schematics ----------------- None Robot Schematics ------------------ None Fabricated ------------ Nothing Alien Tech Used ----------------- None Achievements -------------- None Challenges ------------ None Game ------ Seed TractorMetafiberLance Manual? 0 Play Time 00:15:06 Cumulative 19.0 hours Start 2024.05.03 @ 01:02:32 End 2024.05.03 @ 14:27:15 Sessions 3 Manual Loads 0 Difficulty Rogue Special Mode None Game No. 42 Rogue 34 Adventurer 8 Explorer 0 Win Type - Total 0 Types 0/0/0/0/0/0/0/0/0 Lore% 7 Gallery% 24 Achievement% 19 Wizard Run 0 Options --------- Layout 0 ASCII 0 Keyboard 0 Movement Mouse Keybinds 0 Fullscreen 2 Font 18/SmallcapsGlow Map View 76x50 Zoom Use 0% Tactical HUD 0 Map Filters NONE Filters NONE Steam 1 RUN: cb2838e2-6a07-42ea-9581-b510c4c87d4a